Cogmind - Beta 15 @@@ ROGUE MODE // 2025.05.31 @ 13:40:34 Player: pakman Result: Destroyed by L-31 Rogue with Katana Performance ------------- Evolutions (2) 1000 Regions Visited (6) 1200 Robots Destroyed (121) 605 Value Destroyed (3167) 3167 Prototype IDs (0) 0 Alien Tech Used (0) 0 Bonus (0) 0 TOTAL SCORE: 5972 Bonus ------- None Cogmind --------- Core Integrity 0/550 Matter 287/300 Energy 290/290 System Corruption 9% Temperature Warm (173) Movement Treading (330) Ox2 Location -8/Materials Parts ------- > --- POWER (1) -------- Reinforced Deuterium Engine > --- PROPULSION (2) --- Armored Treads (fused) > --- UTILITY (5) ------ Large Storage Unit Visual Processing Unit Sensor Array Targeting Computer Improved Light Armor Plating (fused) > --- WEAPON (3) ------- Particle Gun Light Assault Rifle > --- INVENTORY (15) --- Light Nuclear Core Advanced Treads Improved Heat Sink Improved Sensor Array Improved Signal Interpreter Improved Terrain Scanner Armor Integrity Analyzer Recoil Stabilizer Improved Light Armor Plating Hardlight Generator Recalibrator Advanced EMP Blaster Rocket Launcher Katana Peak State ------------ > --- POWER ------------ Reinforced Deuterium Engine > --- PROPULSION ------- Light Treads Armored Treads > --- UTILITY ---------- Large Storage Unit Visual Processing Unit Targeting Computer Improved Light Armor Plating Recalibrator > --- WEAPON ----------- High-powered Shotgun High-powered Shotgun Assault Cannon > --- INVENTORY -------- Light Nuclear Core Light Treads Light Treads Improved Heat Sink Sensor Array Improved Sensor Array Improved Signal Interpreter Improved Terrain Scanner Armor Integrity Analyzer Improved Light Armor Plating Improved Light Armor Plating Hardlight Generator Advanced EMP Blaster Rocket Launcher Katana [Rating: 32] Favorites ----------- Power Light Ion Engine Engine Light Ion Engine Power Core Light Nuclear Core Propulsion Light Treads Treads Light Treads Leg Aluminum Leg Wheel Wheel Utility Large Storage Unit Device Seismic Detector Storage Large Storage Unit Processor Visual Processing Unit Protection Improved Light Armor Plating Weapon Light Assault Rifle Energy Gun Particle Gun Energy Cannon Particle Cannon Ballistic Gun Light Assault Rifle Ballistic Cannon Assault Cannon Launcher Mini Grenade Launcher Impact Weapon Hammer Slashing Weapon Katana Build | -11 -10 -9 -9 -9 -8 -8 ------- Run | Yrd Mat Mat Min Exi Min Mat Slots Evolved 4 | . . 2 . . . 2 Power . | . . . . . . . Propulsion . | . . . . . . . Utility 3 | . . 2 . . . 1 Weapon 1 | . . . . . . 1 Parts Attached 73 | 8 4 11 3 . 18 29 Power 11 | 1 1 3 1 . 2 3 Engine 7 | 1 1 2 1 . . 2 Core 4 | . . 1 . . 2 1 Reactor . | . . . . . . . Propulsion 22 | 2 . 2 1 . 9 8 Treads 8 | 2 . 1 . . . 5 Leg 6 | . . . . . 5 1 Wheel 8 | . . 1 1 . 4 2 Hover . | . . . . . . . Flight . | . . . . . . . Utility 15 | 2 2 3 . . 2 6 Device 8 | 1 . 1 . . 2 4 Storage 3 | 1 2 . . . . . Processor 2 | . . 2 . . . . Hackware . | . . . . . . . Protection 2 | . . . . . . 2 Artifact . | . . . . . . . Weapon 25 | 3 1 3 1 . 5 12 Energy Gun 4 | 1 . . . . . 3 Energy Cannon 3 | . . 1 . . 1 1 Ballistic Gun 12 | 2 . 1 . . 3 6 Ballistic Cannon 1 | . . . . . . 1 Launcher 2 | . . 1 1 . . . Special Weapon . | . . . . . . . Impact Weapon 1 | . 1 . . . . . Slashing Weapon 2 | . . . . . 1 1 Piercing Weapon . | . . . . . . . Special Melee Weapon . | . . . . . . . Unidentified Prototypes . | . . . . . . . Corrupted Parts 1 | . . . . . . 1 System Corruption 8 | . . . . . . 8 Parts Lost 39 | . 2 7 1 . 10 19 Power 7 | . 1 2 . . 2 2 Propulsion 12 | . 1 2 . . 4 5 Utility 4 | . . 1 . . . 3 Weapon 16 | . . 2 1 . 4 9 Highest Loss Streak 7 | . 1 6 1 . 3 7 To Critical Strikes 1 | . . . . . . 1 Average Backups 10 | 2 8 10 11 11 12 13 Power . | . . . 1 2 1 . Propulsion 1 | . 1 . . . 2 1 Utility 6 | . 4 3 4 4 5 8 Weapon 2 | . 1 5 5 5 3 2 Tool/Special . | . . . . . . . Unused Backups 20 | . . 2 . . 3 15 Power 5 | . . 1 . . 2 2 Propulsion 3 | . . 1 . . . 2 Utility 10 | . . . . . 1 9 Weapon 2 | . . . . . . 2 Tool/Special . | . . . . . . . Average Slot Usage (%) 95 | . 95 94 95 100 98 93 Engine 9 | . 13 9 11 11 1 7 Core 1 | . . . . . 9 . Treads 13 | . 23 12 . . . 14 Wheel 4 | . . 5 17 22 15 1 Device 11 | . 14 10 11 11 11 10 Storage 11 | . 14 11 11 11 11 9 Processor 13 | . . 21 22 22 22 18 Protection 2 | . . . . . . 6 Energy Gun 1 | . . . . . . 3 Energy Cannon 2 | . . 3 11 11 7 . Ballistic Gun 17 | . 26 17 9 11 12 12 Ballistic Cannon 2 | . . . . . . 6 Peak Build Rating 32 | 7 8 14 13 12 18 32 Average Rating 15 | 5 7 10 11 12 16 26 On Entrance 9 | . 7 7 11 12 12 17 Naked Turns . | . . . . . . . Heaviest Build 50 | 12 28 31 34 29 31 50 Greatest Support 40 | 40 40 40 20 20 26 40 Greatest Overweight (x) 10 | . 1 3 3 1 10 9 Average Overweight (x) . | . . 1 1 1 1 1 Largest Inventory Capacity 15 | 8 15 15 15 15 15 15 Average Capacity 13 | 7 11 15 15 15 15 15 Most Carried 15 | 3 10 12 12 11 15 15 Average Carried 10 | 2 8 10 11 11 12 13 Final Capacity 15 | 8 15 15 15 15 15 15 Final Carried 14 | 3 10 10 11 11 11 14 Class Distribution -------------------- 45% | Mutant 29% | Scavenger-Mutant 12% | Skirmisher 10% | Gunner Dominant Class ---------------- Mutant | -10/Materials Mutant | -9/Materials Scavenger-Mutant | -9/Mines Scavenger-Mutant | -9/Exiles Scavenger-Mutant | -8/Mines Skirmisher | -8/Materials Resources | -11 -10 -9 -9 -9 -8 -8 ----------- Run | Yrd Mat Mat Min Exi Min Mat Matter Collected 2531 | 335 393 265 166 . 306 1066 Remotely . | . . . . . . . Salvage Created 3947 | 54 944 408 272 . 884 1385 Parts 254 | 8 43 29 27 . 53 94 Haulers Intercepted 4 | . 2 . . . . 2 Recyclers Shooed 1 | . 1 . . . . . Parts Field Recycled . | . . . . . . . Retrieved Matter . | . . . . . . . Parts Self-Destructed . | . . . . . . . Prevented . | . . . . . . . Kills | -11 -10 -9 -9 -9 -8 -8 ------- Run | Yrd Mat Mat Min Exi Min Mat Combat Hostiles Destroyed 86 | . 16 11 12 . 15 32 Melee 8 | . . . . . 4 4 Guns 56 | . 16 10 1 . 7 22 Cannons 13 | . . 1 3 . 4 5 AOE 9 | . . . 8 . . 1 Classes Destroyed 14 | 1 7 2 1 . 2 1 Worker 5 | . 1 . . . . 4 Builder 5 | . . . . . 1 4 Tunneler 9 | 3 . . 3 . 2 1 Hauler 4 | . 2 . . . . 2 Recycler 2 | . 1 . . . . 1 Mechanic 1 | . . 1 . . . . Operator 2 | . 1 . . . . 1 Watcher 7 | . 3 1 . . . 3 Swarmer 25 | . 2 3 6 . 3 11 Grunt 48 | . 14 7 4 . 9 14 Brawler 3 | . . . . . 2 1 Duelist 3 | . . . 2 . 1 . Sentry 6 | . . 1 . . . 5 Hunter 1 | . . . . . . 1 Best Kill Streak 7 | 2 4 4 3 . 3 7 Combat Bots Only 4 | . 4 3 3 . 3 3 Max Kills in Single Turn 3 | 1 1 1 2 . 1 3 Gunslinging . | . . . . . . . Exploded 2 | . . . 2 . . 1 Melee 1 | . . . . . 1 1 Uniques/NPCs Destroyed . | . . . . . . . Combat | -11 -10 -9 -9 -9 -8 -8 -------- Run | Yrd Mat Mat Min Exi Min Mat Hostile Shots Fired 477 | . 67 57 16 . 89 248 Missed 118 | . 24 11 4 . 23 56 Hits 359 | . 43 46 12 . 66 192 Melee 8 | . . . 1 . 3 4 Projectile 351 | . 43 46 11 . 63 188 Critical Strikes 16 | . . . . . 1 15 Damage Taken 5144 | . 496 553 295 . 1058 2742 Core 1040 | . 74 66 50 . 266 584 Absorbed by Shields . | . . . . . . . Core Remaining (%) 58 | 100 70 . . . 4 . Volleys Fired 345 | 16 76 44 21 . 76 112 Largest 3 | 2 2 2 2 . 2 3 Hottest 167 | 40 40 88 88 . 88 167 Shots Fired 701 | 32 152 83 33 . 151 250 Gun 553 | 32 152 71 12 . 104 182 Cannon 135 | . . 8 12 . 47 68 Launcher 13 | . . 4 9 . . . Special . | . . . . . . . Kinetic 565 | 32 152 71 12 . 104 194 Thermal 115 | . . 8 12 . 47 48 Explosive 13 | . . 4 9 . . . Electromagnetic 8 | . . . . . . 8 Robot Hit Streak 13 | 5 10 11 13 . 10 8 Robot Miss Streak 6 | 4 3 2 1 . 3 6 Penetration Max . | . . . . . . . Secondary Targets 2 | . . . . . . 2 Max Gunslinging Chain 1 | . . . . . . 1 Shots Hit Robots 473 | 19 105 57 21 . 108 163 Core Hits 232 | 6 50 24 21 . 48 83 Critical Kills 3 | . 1 1 . . 1 . Critical Parts Destroyed 2 | . 1 . . . . 1 Critical Strikes 9 | . 2 1 . . 1 5 Burn 2 | . . . . . . 2 Destroy 5 | . 2 1 . . 1 1 Blast 2 | . . . . . . 2 Melee Attacks 23 | . 4 . . . 9 10 Impact 4 | . 4 . . . . . Slashing 19 | . . . . . 9 10 Piercing . | . . . . . . . Sneak Attacks 2 | . . . . . . 2 Combat Hostiles . | . . . . . . . Follow-up Attacks . | . . . . . . . Damage Inflicted 7480 | 196 1124 645 933 . 1510 3072 Guns 4228 | 196 1117 539 55 . 577 1744 Cannons 1830 | . . 106 234 . 638 852 Explosions 806 | . . . 644 . . 162 Melee 609 | . . . . . 295 314 Ramming 7 | . 7 . . . . . Kinetic 4594 | 196 1117 539 55 . 577 2110 Thermal 1374 | . . 106 234 . 638 396 Explosive 806 | . . . 644 . . 162 Electromagnetic 90 | . . . . . . 90 Impact . | . . . . . . . Slashing 609 | . . . . . 295 314 Piercing . | . . . . . . . Highest Corruption 9 | . . . . . 4 9 Average Corruption 7 | . . . . . 4 8 Corruption Purged . | . . . . . . . Corruption Blocked . | . . . . . . . Effects 94 | . . . . . 21 73 Message Errors 21 | . . . . . 5 16 Matter Fused 24 | . . . . . 4 20 Heat Flow Errors 5 | . . . . . . 5 Energy Discharges 12 | . . . . . 3 9 Parts Rejected 3 | . . . . . 1 2 Parts Fused 4 | . . . . . . 4 Data Loss (minor) 9 | . . . . . 4 5 Data Loss (major) 5 | . . . . . 2 3 Misfires 2 | . . . . . 1 1 Alerts 3 | . . . . . . 3 Weapon Failures 6 | . . . . . 1 5 Overload Shots . | . . . . . . . Overflow Damage 183 | . . . 38 . 78 67 Projectiles 16 | . . . . . 2 14 Explosions 59 | . . . 38 . . 21 Melee 108 | . . . . . 76 32 Knockbacks 7 | . . . . . . 7 Impact . | . . . . . . . Kinetic 6 | . . . . . . 6 Secondary 1 | . . . . . . 1 Self-Inflicted Damage 270 | . . . 157 . . 113 Shots 7 | . . . 6 . . 1 Rammed 1 | . 1 . . . . . Targets Rammed 1 | . 1 . . . . . Kicked . | . . . . . . . Crushed . | . . . . . . . Highest Temperature 589 | . 9 97 56 . 121 589 Average Temperature 82 | . 4 33 20 . 28 118 Received Heat Transfer 2196 | . 252 270 36 . 513 1125 Effects 11 | . . . . . . 11 Shutdowns 2 | . . . . . . 2 Energy Bleed 1 | . . . . . . 1 Interference 5 | . . . . . . 5 Damage (minor) 2 | . . . . . . 2 Damage (core) 1 | . . . . . . 1 Siege Activations . | . . . . . . . Martial Activations . | . . . . . . . Shielding Activations . | . . . . . . . Robots Disrupted . | . . . . . . . Combat Hostiles . | . . . . . . . Robots Corrupted . | . . . . . . . Combat Hostiles . | . . . . . . . Parts Fried . | . . . . . . . Impact Corruptions . | . . . . . . . Robots Melted . | . . . . . . . Combat Hostiles . | . . . . . . . Parts Melted 3 | . . . 1 . 2 . Heat Transferred 2849 | . . 185 407 . 1147 1110 Parts Sabotaged . | . . . . . . . Parts Stolen . | . . . . . . . Parts Stripped . | . . . . . . . Power Chain Reactions . | . . . . . . . Alert | -11 -10 -9 -9 -9 -8 -8 ------- Run | Yrd Mat Mat Min Exi Min Mat Maximum Alert Level 1 | . . . 1 . . . Low Security (%) 96 | 100 100 100 43 . 100 100 Level 1 3 | . . . 56 . . . Level 2 . | . . . . . . . Level 3 . | . . . . . . . Level 4 . | . . . . . . . Level 5 . | . . . . . . . High Security . | . . . . . . . Max Security . | . . . . . . . Peak Influence 291 | 5 162 82 291 . 75 148 Initial 42 | . . 42 . . . 5 Average 56 | . 71 37 205 . 28 36 Influence Increases 2726 | 15 510 364 386 . 430 1021 Destroy 0b10 Robot/C 1720 | . 320 220 240 . 300 640 Destroy 0b10 Robot/NC 195 | 15 40 10 15 . 35 80 Destroy Leader 412 | . 100 52 40 . 50 170 Successful Hack 20 | . 1 10 . . . 9 Disable Machine 105 | . 15 15 30 . . 45 Destroy Structure 139 | . 4 27 61 . . 47 Lose Combat Pursuer 135 | . 30 30 . . 45 30 Influence Decreases 2580 | 15 410 464 240 146 416 889 Entered New Map 213 | . . 58 . 146 . 9 Time Decay 1825 | 15 390 336 230 . 324 530 Lost Part 382 | . 20 70 10 . 92 190 Purge Threat 160 | . . . . . . 160 Squads Dispatched 20 | . 6 2 . . . 12 Investigation 5 | . 2 1 . . . 2 Extermination . | . . . . . . . Reinforcement 6 | . 4 1 . . . 1 Assault . | . . . . . . . Garrison 9 | . . . . . . 9 Intercept . | . . . . . . . Searches Triggered . | . . . . . . . Construction Impeded . | . . . . . . . Haulers Reinforced . | . . . . . . . Active Scanning Responses . | . . . . . . . Cargo Convoy Interrupts . | . . . . . . . Stealth | -11 -10 -9 -9 -9 -8 -8 --------- Run | Yrd Mat Mat Min Exi Min Mat Distress Signals 6 | . 2 1 . . . 3 Communications Jammed . | . . . . . . . Distress Signals . | . . . . . . . Times Spotted 131 | . 31 24 12 . 18 46 Peak Tracking Total 4 | . 3 4 3 . 3 4 Tactical Retreats 7 | . 2 1 . . 2 2 Traps | -11 -10 -9 -9 -9 -8 -8 ------- Run | Yrd Mat Mat Min Exi Min Mat Traps Triggered 6 | . 2 1 . . . 3 Indirectly . | . . . . . . . Trap Hack Attempts . | . . . . . . . Triggered . | . . . . . . . Disarmed . | . . . . . . . Reprogrammed . | . . . . . . . Reused . | . . . . . . . Traps Extracted . | . . . . . . . Installed . | . . . . . . . Triggered . | . . . . . . . Machines | -11 -10 -9 -9 -9 -8 -8 ---------- Run | Yrd Mat Mat Min Exi Min Mat Machines Disabled 7 | . 1 1 2 . . 3 Max in Single Turn 1 | . 1 1 1 . . 1 Machines Repaired . | . . . . . . . Machines Dismantled . | . . . . . . . Machines Sabotaged . | . . . . . . . Overloaded Fab Kills . | . . . . . . . Hacking | -11 -10 -9 -9 -9 -8 -8 --------- Run | Yrd Mat Mat Min Exi Min Mat Machines Accessed 14 | . 6 2 . . . 6 Terminals 13 | . 5 2 . . . 6 Fabricators . | . . . . . . . Repair Stations 1 | . 1 . . . . . Recycling Units . | . . . . . . . Scanalyzers . | . . . . . . . Garrison Access . | . . . . . . . Total Hacks 38 | . 16 3 . . . 19 Successful 15 | . 8 2 . . . 5 Failed 22 | . 7 1 . . . 14 Catastrophic 3 | . 1 . . . . 2 Database Lockouts 1 | . 1 . . . . . Manual 33 | . 13 2 . . . 18 Terminals 37 | . 15 3 . . . 19 Fabricators . | . . . . . . . Repair Stations 1 | . 1 . . . . . Recycling Units . | . . . . . . . Scanalyzers . | . . . . . . . Garrison Access . | . . . . . . . Terminal Hacks 8 | . 5 1 . . . 2 Record 2 | . 2 . . . . . Robot Analysis 3 | . 3 . . . . . Unreport Threat 2 | . . . . . . 2 Zone Layout 1 | . . 1 . . . . Fabricator Hacks . | . . . . . . . Repair Station Hacks . | . . . . . . . Recycling Unit Hacks . | . . . . . . . Scanalyzer . | . . . . . . . Garrison Access Hacks . | . . . . . . . Unauthorized Hacks 7 | . 3 1 . . . 3 Terminals 7 | . 3 1 . . . 3 Botnet 7 | . 3 1 . . . 3 Fabricators . | . . . . . . . Repair Stations . | . . . . . . . Recycling Units . | . . . . . . . Scanalyzers . | . . . . . . . Garrison Access . | . . . . . . . Data Cores Recovered . | . . . . . . . Used . | . . . . . . . Hacking Detections 14 | . 6 2 . . . 6 Full Trace Events . | . . . . . . . Feedback Events . | . . . . . . . Feedback Blocked . | . . . . . . . Robot Schematics Acquired . | . . . . . . . Robots Built . | . . . . . . . Authchips . | . . . . . . . Time . | . . . . . . . Total Robot Build Rating . | . . . . . . . Part Schematics Acquired . | . . . . . . . Parts Built . | . . . . . . . Authchips . | . . . . . . . Time . | . . . . . . . Total Part Build Rating . | . . . . . . . Parts Repaired . | . . . . . . . Time . | . . . . . . . Parts Recycled . | . . . . . . . Recycled Matter . | . . . . . . . Retrieved Matter . | . . . . . . . Retrieved Components . | . . . . . . . Parts Scanalyzed . | . . . . . . . Part Schematics Acquired . | . . . . . . . Parts Damaged . | . . . . . . . Bothacking | -11 -10 -9 -9 -9 -8 -8 ------------ Run | Yrd Mat Mat Min Exi Min Mat Used RIF Installer . | . . . . . . . Robots Hacked . | . . . . . . . Non-combat . | . . . . . . . Combat . | . . . . . . . Robot Hacks Applied . | . . . . . . . Relay Couplers Released . | . . . . . . . Fabnet Peak Effective % . | . . . . . . . Robots Rewired . | . . . . . . . Allies Hacked . | . . . . . . . Hacks Repelled . | . . . . . . . Allies | -11 -10 -9 -9 -9 -8 -8 -------- Run | Yrd Mat Mat Min Exi Min Mat Total Allies . | . . . . . . . Largest Group . | . . . . . . . Highest-Rated Group . | . . . . . . . Highest-Rated Ally . | . . . . . . . Total Orders . | . . . . . . . Ally Attacks . | . . . . . . . Total Damage . | . . . . . . . Kills . | . . . . . . . Allies Corrupted . | . . . . . . . Allies Melted . | . . . . . . . Intel | -11 -10 -9 -9 -9 -8 -8 ------- Run | Yrd Mat Mat Min Exi Min Mat Active Infowar (turns) 6916 | 37 2082 826 490 63 978 2440 Optics 4681 | . . 826 490 63 978 2324 Sensors 1015 | . . . . . . 1015 Seismic 2741 | 37 2082 546 . . . 76 Robot Analysis Total 3 | . 3 . . . . . Derelict Logs Recovered 1 | . . . 1 . . . Drone Launches . | . . . . . . . Drone Recoveries . | . . . . . . . Exploration | -11 -10 -9 -9 -9 -8 -8 ------------- Run | Yrd Mat Mat Min Exi Min Mat Turns Passed 7118 | 239 2082 826 490 63 978 2440 Spaces Moved 3300 | 114 843 452 417 67 571 836 Core 12 | 5 . . . . 1 6 Treads 1762 | 109 843 196 . . . 614 Legs 90 | . . . . . 88 2 Wheels 1436 | . . 256 417 67 482 214 Hover . | . . . . . . . Flight . | . . . . . . . Fastest Speed 50 | 50 160 110 95 95 95 105 Average Speed 158 | 155 176 139 102 95 117 213 Slowest Speed 550 | 160 240 240 125 95 550 500 Overloaded Moves . | . . . . . . . Propulsion Burnouts . | . . . . . . . Robots Hopped . | . . . . . . . Potential Cave-ins . | . . . . . . . Cave-ins Triggered . | . . . . . . . Exploration Rate (%) 52 | 9 92 34 71 12 94 56 Regions Visited 6 Branch Regions 3 Pre-discovered Areas . | . . . . . . . Known Exits Taken . | . . . . . . . Unknown Exits Taken 6 | 1 1 1 1 1 1 . Scrap Searched 3 | . . . 1 . 2 . Spaces Dug 31 | . 3 11 16 . . 1 Terrain Destroyed 178 | . 3 41 97 . . 37 Melee 4 | . 3 . . . . 1 Projectile 13 | . . . . . . 13 AOE 161 | . . 41 97 . . 23 Terrain Rammed . | . . . . . . . Walls Destroyed . | . . . . . . . Machines Disabled . | . . . . . . . Actions | -11 -10 -9 -9 -9 -8 -8 --------- Run | Yrd Mat Mat Min Exi Min Mat Total 4521 | 143 1287 574 448 66 739 1264 Wait 682 | 3 343 52 . . 38 246 Move 3294 | 113 842 451 416 66 570 836 Hop . | . . . . . . . Pick Up 51 | 3 9 10 3 . 12 14 Fast Attach 34 | 7 . 2 1 . 4 20 Attach 27 | . 1 8 1 . 9 8 Detach 5 | . . 1 . . 1 3 Swap 29 | 1 8 3 4 . 8 5 Drop 30 | . 3 3 2 . 12 10 Fire 345 | 16 76 44 21 . 76 112 Melee 23 | . 4 . . . 9 10 Ram . | . . . . . . . Kick . | . . . . . . . Crush 1 | . 1 . . . . . Escape Stasis . | . . . . . . . Rewire . | . . . . . . . Trap . | . . . . . . . Miscellaneous . | . . . . . . . Route ------- -11/Scrapyard -10/Materials (discovered 3 exits: *Mat x2 / [*Min]) -9/Materials (discovered 2 exits: *Mat / [*Min]) -9/Mines (discovered 2 exits: *Mat / [*Exi]) -9/Exiles -8/Mines (discovered 2 exits: *Mat x2) -8/Materials (discovered 1 exit: [*Fac]) History --------- Turn | Location | Event 15 | -11/Scrapyard | Discovered new exit (range 15) 240 | -11/Scrapyard | Entered Materials 306 | -10/Materials | Build established: Mutant 913 | -10/Materials | Discovered new exit (range 10) 1489 | -10/Materials | Central database locked down 1735 | -10/Materials | Discovered new exit (range 11) 1735 | -10/Materials | Discovered new exit (range 12) 2322 | -10/Materials | Entered another Materials area 2322 | -9/Materials | Evolved 2 slots: Utility x2 2603 | -9/Materials | Discovered new exit (range 7) 2744 | -9/Materials | Build established: Scavenger-Mutant 2927 | -9/Materials | Lost 6 parts (1p2n1u2w) 2960 | -9/Materials | Discovered new exit (range 9) 3143 | -9/Materials | Build established: Mutant 3148 | -9/Materials | Entered Mines 3201 | -9/Mines | Discovered new exit (range 10) 3397 | -9/Mines | Learned Materials stockpile data 3624 | -9/Mines | Build established: Scavenger-Mutant 3632 | -9/Mines | Deemed a non-threat by the Exiles lab entrance 3633 | -9/Mines | Discovered new exit (range 5) 3638 | -9/Mines | Entered Exiles 3653 | -9/Exiles | Discovered new exit (range 15) 3668 | -9/Exiles | Met 8R-AWN 3701 | -9/Exiles | Entered Mines 3706 | -8/Mines | Discovered new exit (range 5) 3926 | -8/Mines | Lost 3 parts (1p1n1w) 3948 | -8/Mines | Core integrity fell below 50% 4455 | -8/Mines | Discovered new exit (range 8) 4464 | -8/Mines | Core integrity fell below 20% 4679 | -8/Mines | Entered Materials 4679 | -8/Materials | Evolved 2 slots: Utility x1, Weapon x1 4680 | -8/Materials | Lost 3 parts (2n1w) 4760 | -8/Materials | Garrison activated, responded to threat 4864 | -8/Materials | Lost 7 parts (1p1n1u4w) 4915 | -8/Materials | Discovered new exit (range 16) 5091 | -8/Materials | Core integrity fell below 50% 5203 | -8/Materials | Lost 4 parts (2n1u1w) 5709 | -8/Materials | Build established: Gunner 6123 | -8/Materials | Garrison activated, responded to threat 6403 | -8/Materials | Build established: Skirmisher 6666 | -8/Materials | Garrison activated, responded to threat 6988 | -8/Materials | Garrison activated, responded to threat 7005 | -8/Materials | Core integrity fell below 20% 7069 | -8/Materials | Lost 3 parts (1n2w) 7119 | -8/Materials | Destroyed by L-31 Rogue with Katana Last Messages --------------- 07042_ System corrupted: Particle Gun failed to cycle. 07050_ S-10 Pest destroyed. 07053_ System corrupted: Matter fused (-8). 07058_ Acquired 6 matter. 07063_ Acquired Lgt. Assault Rifle. 07065_ Acquired 12 matter. 07069_ Acquired 15 matter. 07070_ 2ZVIPU7&YIZ/7|N 07116_ IZEKKL=W,NCEU2QX9:KB7 &PE 07116_ Lgt. Treads severed. 07118_ K-01 Serf collects debris. Map ----- +----------------------------------------------------+ | ?????????????????????????????????????????????????? | | ?????????????????????????????????????????????????? | | ?????????????????????????????????????????????????? | | ?????????????????????????????????????????????????? | | ?????????????????????????????????????###########?? | | ?????????????????????????????????????# #?? | | ??????#####??????????????????????????# #?? | | ??????# #??????????????????????????# """ #?? | | ??????# #??????????????????????##### """"" ### | | ??????# #??????????????????????# #! """"" # | | ??????# #??????????????????????# # """"" # | | ??????# #??????????????????????# # """ + | | ??????# #??????????????????????# # ! # | | ??????# #???????????############ ########### | | ??????# #?########### ## ! #?????????# | | ??????# #?# # ! ## #?????????# | | ??????# #?# *# = =###+############ | | ??????# #?# # * +% | | ??????# #?# # = !#! | | ??????# #?# # == ! ########+#######+# | | ??????# #?# ! # ! #???# * # | | ??????# % #?# # !* #???# """"" # | | ??????# #?# %= ####+#######??# """"" # | | ??????# #########+###### ### !!#??# """"" + | | ??????# % %k ### !!#??# """"" /# | | ####### @ !!#??# """"" # | | % % ] kl !!#??# """"" # | | % [[#??# """"" # | | ############% " [[#??# # | | ?????????#"" "" ############??############## | | ?????????#"" """ ##?????????????????????????? | | ?????????#"T """ "#?????????????????????????? | | ?????????#"" "" T#?????????????????????????? | | ?????????#"" "" "#?????????????????????????? | | ?????????### "" ##?????????????????????????? | | ???????????# """ #??????????????????????????? | | ???????????# " #??????????????????????????? | | ??????????"" "??????????????????????????? | | ??????????"T ??????????????????????????? | | ??????????"" "??????????????????????????? | | ???????????# #??????????????????????????? | | ???????????# ! #??????????????????????????? | | ??????????? ??????????????????????????? | | ?????????? ??????????????????????????? | | ????????? / ??????????????????????????? | | ?????????### ###+##??????????????????????????? | | ???????????? ##?? ????????????????????????????? | | ??????????????????? !????????????????????????????? | | ??????????????????? !????????????????????????????? | | ??????????????????? =????????????????????????????? | +----------------------------------------------------+ Best States ------------- Heat Dissipation 59 Energy Generation 16 Energy Capacity 290 Matter Stores 300 Matter Capacity 300 Sight Range 18 Robot Scan Range 14 Terrain Scan Density 10 Armor Coverage 150 Evasion (%) 41 Targeting Accuracy 5 Recoil Reduction 2 Item Schematics ----------------- None Robot Schematics ------------------ None Fabricated ------------ Nothing Repaired ---------- Nothing Alien Tech Used ----------------- None Achievements -------------- None Challenges ------------ None Game ------ Seed TerrabombShadingAxe Manual? 0 Play Time 01:00:44 Cumulative 62.5 hours Start 2025.05.31 @ 12:39:56 End 2025.05.31 @ 13:40:34 Sessions 1 Manual Loads 0 Difficulty Rogue Special Mode None Game No. 68 Rogue 68 Adventurer 0 Explorer 0 Win Type - Total 0 Types 0/0/0/0/0/0/0/0/0/0 Lore% 32 Gallery% 31 Achievement% 28 Wizard Run 0 Options --------- Layout 0 ASCII 0 Keyboard 1 Movement Numpad Keybinds 0 Fullscreen 2 Font 18/SmallcapsGlow Map View 76x50 Zoom Use 0% Tactical HUD 1 Map Filters NONE Filters NONE Steam 1 RUN: 5857dca8-8295-4c4c-824d-cb05554d143d